bitfinex/quotes_ETHUSD_20230109
["timestamp","ask_amount","ask_price","bid_price","bid_amount"]
[1673260472576,19.73466287,1326.3,1326.0,3.79766064]
[1673260472807,12.19458287,1326.3,1326.0,3.79766064]
[1673260472985,16.74084996,1326.3,1325.9,22.85537]
[1673260473194,16.74084996,1326.3,1325.8,8.212]
[1673260473195,0.566,1326.2,1325.8,29.62697]
[1673260473453,0.566,1326.2,1325.9,4.02766064]
[1673260473669,4.65481287,1326.4,1326.0,3.79766064]
[1673260473878,4.65481287,1326.4,1326.1,0.23]
[1673260474041,6.62690072,1326.4,1326.1,3.79766064]
[1673260474246,0.566,1326.3,1326.1,11.33829064]
[1673260474454,4.65481287,1326.4,1326.1,26.42009064]
[1673260474721,5.95470337,1326.5,1326.2,0.23]
[1673260474893,4.65481287,1326.4,1326.2,7.77013]
[1673260475304,5.95095332,1326.5,1326.2,0.23]
[1673260475565,30.87870911,1326.5,1326.2,0.23]
[1673260475876,8.65106282,1326.4,1326.0,7.54147]
[1673260476087,0.566,1326.3,1326.0,7.54147]
[1673260476409,0.566,1326.3,1326.0,22.62441]
[1673260476710,0.566,1326.3,1326.0,21.62862744]
[1673260476944,5.21706282,1326.4,1326.0,29.17009744]
[1673260477240,0.566,1326.4,1326.0,29.17009744]
[1673260477559,0.566,1326.4,1326.0,14.08715744]
[1673260477866,12.10534,1326.4,1326.1,0.23]
[1673260478082,12.46793813,1326.4,1326.1,0.23]
[1673260478239,20.00727813,1326.4,1326.1,0.23]
[1673260478444,4.92859813,1326.4,1326.1,0.23]
[1673260478697,4.92859813,1326.4,1326.1,7.77073]
[1673260479023,4.92859813,1326.4,1326.1,22.85253]
[1673260479187,0.566,1326.4,1326.1,15.31163]
[1673260479610,8.1053,1326.4,1326.1,19.10929064]
[1673260479852,8.1053,1326.4,1326.1,26.65019064]
[1673260479853,0.566,1326.4,1326.1,26.65019064]
[1673260480050,5.38097551,1326.5,1326.3,15.07954]
[1673260480051,1.2998905,1326.5,1326.3,15.07954]
[1673260480233,5.71520205,1326.5,1326.3,15.07954]
[1673260480475,5.71520205,1326.5,1326.3,22.61931]
[1673260481016,0.7339905,1326.5,1326.3,26.41697064]
[1673260481393,0.7339905,1326.5,1326.4,12.23366064]
[1673260481599,0.7339905,1326.5,1326.4,34.85126064]
[1673260481808,0.7339905,1326.5,1326.4,30.85126064]
[1673260482059,0.7339905,1326.5,1326.4,11.56686064]
[1673260482233,0.7339905,1326.5,1326.4,4.02766064]
[1673260482439,0.7339905,1326.5,1326.4,0.23]
[1673260482690,0.7339905,1326.5,1326.2,10.5403]
[1673260482865,0.7339905,1326.5,1326.3,4.02766064]
[1673260483528,0.7339905,1326.5,1326.3,0.23]
[1673260483716,8.2726605,1326.5,1326.0,52.7819]
[1673260483906,8.2726605,1326.5,1326.1,6.79766064]
[1673260483907,16.45671565,1326.5,1326.1,6.79766064]
[1673260484118,18.23457565,1326.5,1326.0,49.2158]
[1673260484377,4.0,1326.4,1326.0,3.79766064]
[1673260484542,4.0,1326.4,1325.9,7.5419]
[1673260484754,13.39663515,1326.4,1325.9,11.33956064]
[1673260485352,13.39663515,1326.4,1325.9,7.74078064]
[1673260485490,24.74997467,1326.4,1325.9,7.74078064]
[1673260485695,24.74997467,1326.4,1325.9,3.79766064]
[1673260485911,32.28922467,1326.4,1325.9,3.79766064]
[1673260486144,7.54045,1326.2,1325.9,3.79766064]
[1673260486361,15.0809,1326.2,1325.9,3.79766064]
[1673260486976,7.54045,1326.2,1325.9,3.79766064]
[1673260487181,15.07997,1326.3,1325.9,11.33960064]
[1673260487424,4.0,1326.2,1325.8,18.08454]
[1673260487585,11.54065,1326.2,1325.8,19.88220064]
[1673260487802,19.0813,1326.2,1325.8,11.33984064]
[1673260488174,26.62195,1326.2,1325.8,3.79766064]
[1673260488478,29.55076676,1326.2,1325.8,3.79766064]
[1673260489283,31.31776676,1326.2,1325.8,7.54256]
[1673260489534,31.31776676,1326.2,1325.7,7.54285]
[1673260490376,31.31776676,1326.2,1325.6,41.68638]
[1673260490688,31.31776676,1326.2,1325.6,18.88450064]
[1673260491314,31.31776676,1326.2,1325.6,26.42886064]
[1673260491526,31.31776676,1326.2,1325.6,32.5184639]
[1673260491701,0.566,1326.2,1325.7,8.02766064]
[1673260491911,11.10639,1326.2,1325.8,26.42465064]
[1673260492138,0.566,1326.2,1325.9,0.23]
[1673260492318,0.566,1326.2,1326.0,7.54147]
[1673260492526,0.566,1326.2,1326.0,22.62441]
[1673260492846,0.566,1326.3,1326.1,0.23]
[1673260493052,0.566,1326.3,1326.1,15.31113]
[1673260493262,31.7313905,1326.5,1326.1,7.77038]
[1673260493263,0.566,1326.4,1326.1,7.77038]
[1673260493514,0.566,1326.4,1326.1,26.64984064]
[1673260493837,0.566,1326.4,1326.1,19.10894064]
[1673260494059,1.2998905,1326.5,1326.2,3.79766064]
[1673260494410,8.8385605,1326.5,1326.1,5.32952722]
[1673260494681,23.9158605,1326.5,1326.1,0.23]
[1673260494848,1.2998905,1326.5,1326.2,3.79766064]
[1673260495057,1.2998905,1326.5,1326.3,4.02766064]
[1673260495285,0.7339905,1326.5,1326.4,3.79766064]
[1673260495466,0.7339905,1326.5,1326.4,4.02766064]
[1673260496104,0.7339905,1326.5,1326.4,13.4775527]
[1673260496463,0.7339905,1326.5,1326.4,5.7083527]
[1673260496992,0.7339905,1326.5,1326.4,13.2475527]
[1673260497235,0.7339905,1326.5,1326.4,20.7867527]
[1673260497719,0.7339905,1326.5,1326.4,29.7679527]
[1673260498115,0.7339905,1326.5,1326.4,33.77438142]
[1673260498512,0.7339905,1326.5,1326.4,40.94624508]
[1673260498723,0.7339905,1326.5,1326.4,38.52724508]
[1673260499352,0.7339905,1326.5,1326.4,38.51949454]
[1673260499806,0.7339905,1326.5,1326.4,35.56238142]
[1673260500228,0.7339905,1326.5,1326.4,41.51361987]
[1673260500399,0.7339905,1326.5,1326.4,35.56238142]
[1673260500617,0.7339905,1326.5,1326.4,20.48398142]
[1673260500870,0.7339905,1326.5,1326.4,35.56238142]
[1673260501091,0.7339905,1326.5,1326.4,16.48398142]
[1673260501610,0.7339905,1326.5,1326.4,5.38966064]
[1673260501994,0.7339905,1326.5,1326.4,12.92886064]
[1673260502559,0.7339905,1326.5,1326.4,1.362]
[1673260502750,0.7339905,1326.5,1326.1,33.0624]
[1673260502966,0.7339905,1326.5,1326.0,8.91444]
[1673260502967,1.2998905,1326.5,1326.2,3.79766064]
[1673260503155,8.8386605,1326.5,1326.2,3.79766064]
[1673260503374,8.2727605,1326.5,1326.2,3.79766064]
[1673260503559,0.7339905,1326.5,1326.2,3.79766064]
[1673260504028,0.7339905,1326.5,1326.3,3.79766064]
[1673260504517,15.8112505,1326.5,1326.2,1.53384806]
[1673260508551,0.7339905,1326.5,1326.4,5.37766064]
[1673260508722,0.7339905,1326.5,1326.4,12.91686064]
[1673260509078,0.7339905,1326.5,1326.4,19.10606064]
[1673260509598,0.7339905,1326.5,1326.4,11.56686064]
[1673260509811,0.7339905,1326.5,1326.4,12.92586064]
[1673260509971,0.7339905,1326.5,1326.4,24.25284032]
[1673260510176,0.7339905,1326.5,1326.4,28.93007558]
[1673260510404,0.7339905,1326.5,1326.4,13.85167558]
[1673260510753,0.7339905,1326.5,1326.4,36.46927558]
[1673260511194,0.7339905,1326.5,1326.4,39.46927558]
[1673260512525,0.7339905,1326.5,1326.4,39.46652615]
[1673260513069,0.7339905,1326.5,1326.4,46.18189519]
[1673260513257,5e-07,1326.5,1326.4,46.18189519]
[1673260513467,5e-07,1326.5,1326.4,52.96276983]
[1673260514301,5e-07,1326.5,1326.4,45.39741624]
[1673260514508,5e-07,1326.5,1326.4,45.39730456]
[1673260514762,5e-07,1326.5,1326.4,46.75930456]
[1673260515565,5e-07,1326.5,1326.4,46.75666949]
[1673260516101,5e-07,1326.5,1326.4,40.82852615]
[1673260516509,5e-07,1326.5,1326.4,39.46952615]
[1673260516720,5e-07,1326.5,1326.4,20.16112615]
[1673260516982,5e-07,1326.5,1326.4,27.70032615]
[1673260517349,5e-07,1326.5,1326.4,35.23952615]
[1673260517612,5e-07,1326.5,1326.4,20.16112615]
[1673260517918,5e-07,1326.5,1326.4,27.70032615]
[1673260518142,5e-07,1326.5,1326.4,27.93032615]
[1673260518352,5e-07,1326.5,1326.4,20.39112615]
[1673260518676,5e-07,1326.5,1326.4,12.85192615]
[1673260519040,5e-07,1326.5,1326.4,27.93032615]
[1673260519502,5e-07,1326.5,1326.4,20.39112615]
[1673260519682,5e-07,1326.5,1326.4,26.56832615]
[1673260520203,5e-07,1326.5,1326.4,34.10752615]
[1673260520413,5e-07,1326.5,1326.4,35.46952615]
[1673260520619,5e-07,1326.5,1326.4,27.93032615]
[1673260520833,5e-07,1326.5,1326.4,20.39112615]
[1673260521681,5e-07,1326.5,1326.4,27.93032615]
[1673260521905,5e-07,1326.5,1326.4,35.46952615]
[1673260523811,5e-07,1326.5,1326.4,36.22785151]
[1673260524023,5e-07,1326.5,1326.4,64.20856697]
[1673260524308,5e-07,1326.5,1326.4,71.76676697]
[1673260524745,5e-07,1326.5,1326.4,82.64076697]
[1673260524985,5e-07,1326.5,1326.4,76.50276697]
[1673260525580,5e-07,1326.5,1326.4,75.93676697]
[1673260526225,5e-07,1326.5,1326.4,80.47276697]
[1673260526450,5e-07,1326.5,1326.4,75.93676697]
[1673260527258,5e-07,1326.5,1326.4,75.64780697]
[1673260528214,5e-07,1326.5,1326.4,68.34509151]
[1673260528929,5e-07,1326.5,1326.4,57.47109151]
[1673260529397,5e-07,1326.5,1326.4,63.39550873]
[1673260530218,5e-07,1326.5,1326.4,33.49849151]
[1673260530437,5e-07,1326.5,1326.4,47.58856615]
[1673260530622,5e-07,1326.5,1326.4,40.04936615]
[1673260531132,5e-07,1326.5,1326.4,48.95056615]
[1673260531346,5e-07,1326.5,1326.4,54.87934376]
[1673260531554,5e-07,1326.5,1326.4,48.95056615]
[1673260531935,5e-07,1326.5,1326.4,39.7971701]
[1673260532081,5e-07,1326.5,1326.4,55.10616173]
[1673260533239,0.0020001,1326.8,1326.4,59.64216173]
[1673260533497,0.0020001,1326.8,1326.7,5.15466064]
[1673260533708,0.0020001,1326.8,1326.7,4.4481267]
[1673260533934,0.0020001,1326.8,1326.7,34.0605967]
[1673260534640,0.0020001,1326.8,1326.7,36.18092206]
[1673260535461,0.0020001,1326.8,1326.7,36.41092206]
[1673260535698,1e-07,1326.8,1326.7,43.69040818]
[1673260535913,1e-07,1326.8,1326.7,43.6915808]
[1673260536139,1e-07,1326.8,1326.7,37.77292206]
[1673260536448,1e-07,1326.8,1326.7,43.69255796]
[1673260536829,1e-07,1326.8,1326.7,43.68974737]
[1673260537184,1e-07,1326.8,1326.7,37.77292206]
[1673260538018,1e-07,1326.8,1326.7,36.41092206]
[1673260540870,0.7339905,1327.2,1326.8,0.002]
[1673260541016,0.7339905,1327.2,1327.1,33.93854064]
[1673260541227,0.7339905,1327.2,1327.1,41.7323947]
[1673260541488,0.7339905,1327.2,1327.1,19.3567347]
[1673260541702,0.7339905,1327.2,1327.1,7.02766064]
[1673261875376,30.12479308,1323.3,1323.2,1.81167243]
[1673261875541,33.92245372,1323.3,1323.2,1.81167243]
[1673261877019,34.48965372,1323.3,1323.2,1.81167243]
[1673261877881,35.05517758,1323.3,1323.2,1.81167243]
[1673261878113,38.05517758,1323.3,1323.2,1.81167243]
[1673261878643,42.05517758,1323.3,1323.2,1.81167243]
[1673261879383,38.05517758,1323.3,1323.2,1.81167243]
[1673261879902,38.05517758,1323.3,1323.2,1.80818147]
[1673261880112,34.09545646,1323.3,1323.2,1.80818147]
[1673261880326,38.05517758,1323.3,1323.2,1.80818147]
[1673261881437,34.09545646,1323.3,1323.2,1.80818147]
[1673261881693,34.09545646,1323.3,1323.2,1.78418147]
[1673261882237,38.05517758,1323.3,1323.2,1.78418147]
[1673261882595,34.09545646,1323.3,1323.2,1.78418147]
[1673261882804,37.4931807,1323.3,1323.2,1.78418147]
[1673261883375,34.09545646,1323.3,1323.2,1.78418147]
[1673261883565,4.03093535,1323.3,1323.2,16.89904147]
[1673261883760,4.22665632,1323.4,1323.2,24.52247147]
[1673261883947,4.16065632,1323.4,1323.2,24.52247147]
[1673261884164,0.76292097,1323.4,1323.2,27.74360274]
[1673261884376,0.19572097,1323.4,1323.2,27.74360274]
[1673261884597,0.19572097,1323.4,1323.3,4.0]
[1673261885330,0.19572097,1323.4,1323.3,4.00492109]
[1673261886101,0.19572097,1323.4,1323.3,0.00492109]
[1673261887321,0.19572097,1323.4,1323.3,0.76324645]
[1673261887963,0.19572097,1323.4,1323.3,8.32010645]
[1673261888210,0.19572097,1323.4,1323.3,8.38610645]
[1673261888890,0.19572097,1323.4,1323.3,0.82924645]
[1673261889102,0.19572097,1323.4,1323.3,0.76324645]
[1673261889307,0.19572097,1323.4,1323.3,3.25813437]
[1673261890060,0.19572097,1323.4,1323.3,2.49980901]
[1673261890279,0.19572097,1323.4,1323.3,0.00492109]
[1673261890676,7.75201097,1323.4,1323.3,0.00492109]
[1673261891006,0.26172097,1323.4,1323.3,0.00492109]
[1673261891341,0.19572097,1323.4,1323.3,0.00492109]
[1673261895464,0.19572097,1323.4,1323.3,7.56178109]
[1673261895620,0.19572097,1323.4,1323.3,0.07092109]
[1673261895829,0.19572097,1323.4,1323.3,0.00492109]
[1673261896978,0.19572097,1323.4,1323.3,7.56178109]
[1673261897187,0.19572097,1323.4,1323.3,7.62778109]
[1673261897441,0.19572097,1323.4,1323.3,0.07092109]
[1673261897983,0.19572097,1323.4,1323.3,0.00492109]
[1673261899304,0.19572097,1323.4,1323.3,15.11864109]
[1673261899617,0.19572097,1323.4,1323.3,22.74150109]
[1673261899969,0.19572097,1323.4,1323.3,18.39290935]
[1673261900361,0.19572097,1323.4,1323.3,29.94976935]
[1673261900555,0.19572097,1323.4,1323.3,26.70809471]
[1673261901297,0.19572097,1323.4,1323.3,0.066]
[1673261901661,0.19572097,1323.4,1323.2,16.96435147]
[1673261901839,0.19572097,1323.4,1323.2,24.52154147]
[1673261902470,0.19572097,1323.4,1323.3,0.00492109]
[1673261903561,0.19572097,1323.4,1323.3,0.00102838]
[1673261904307,7.75201097,1323.4,1323.3,0.00102838]
[1673261904524,7.81801097,1323.4,1323.3,0.00102838]
[1673261904832,15.37430097,1323.4,1323.3,0.00102838]
[1673261904993,7.81801097,1323.4,1323.3,0.00102838]
[1673261905654,0.26172097,1323.4,1323.3,0.00102838]
[1673261905873,0.19572097,1323.4,1323.3,15.11474838]
[1673261906098,0.19572097,1323.4,1323.3,25.18980637]
[1673261906333,0.19572097,1323.4,1323.3,10.07608637]
[1673261906477,0.19572097,1323.4,1323.3,0.066]
[1673261906691,0.19572097,1323.4,1323.2,9.40757147]
[1673261907160,0.19572097,1323.4,1323.2,1.85018147]
[1673261907343,0.19572097,1323.4,1323.2,1.78418147]
[1673261907727,7.75209097,1323.4,1323.2,1.78418147]
[1673261907937,7.81809097,1323.4,1323.2,1.78418147]
[1673261908825,0.26172097,1323.4,1323.2,9.34155147]
[1673261908988,0.19572097,1323.4,1323.2,9.40755147]
[1673261909828,7.75203097,1323.4,1323.2,1.85018147]
[1673261910038,7.81803097,1323.4,1323.2,9.34160147]
[1673261910250,0.26172097,1323.4,1323.2,9.40760147]
[1673261910493,0.19572097,1323.4,1323.2,9.40760147]
[1673261910703,0.19572097,1323.4,1323.2,16.96503147]
[1673261912781,0.19572097,1323.4,1323.2,9.40760147]
[1673261912997,0.19572097,1323.4,1323.2,16.96503147]
[1673261913856,0.19572097,1323.4,1323.2,9.40760147]
[1673261915444,0.19572097,1323.4,1323.2,16.96503147]
[1673261916445,0.19572097,1323.4,1323.2,24.52246147]
[1673261916700,0.19572097,1323.4,1323.2,28.92542274]
[1673261918389,0.19572097,1323.4,1323.2,21.36799274]
[1673261919222,0.19572097,1323.4,1323.2,28.92542274]
[1673261919622,0.19572097,1323.4,1323.2,21.36799274]
[1673261919862,0.19572097,1323.4,1323.2,28.92542274]
[1673261920069,0.19572097,1323.4,1323.2,21.36799274]
[1673261920455,0.19572097,1323.4,1323.2,28.92542274]
[1673261921643,0.19572097,1323.4,1323.2,31.92542274]
[1673261922078,0.19572097,1323.4,1323.2,28.92542274]
[1673261923493,0.19572097,1323.4,1323.2,21.36799274]
[1673261923817,0.19572097,1323.4,1323.2,28.92542274]
[1673261924452,0.19572097,1323.4,1323.2,21.36799274]
[1673261925015,0.19572097,1323.4,1323.2,28.92542274]
[1673261925171,0.19572097,1323.4,1323.2,21.36799274]
[1673261927618,0.19572097,1323.4,1323.2,21.36484299]
[1673261929278,0.19572097,1323.4,1323.2,28.92227299]
[1673261930233,0.19572097,1323.4,1323.2,32.92227299]
[1673261931059,0.19572097,1323.4,1323.2,32.68059835]
[1673261932174,0.19572097,1323.4,1323.2,29.68059835]
[1673261932475,0.19572097,1323.4,1323.2,16.96188172]
[1673261934354,3.59345632,1323.4,1323.2,16.96188172]
[1673261935533,3.59345632,1323.4,1323.2,9.40445172]
[1673261937196,3.59345632,1323.4,1323.2,9.40426172]
[1673261937515,3.59345632,1323.4,1323.2,9.40443172]
[1673261937943,11.14975632,1323.4,1323.2,1.84703172]
[1673261938251,3.65945632,1323.4,1323.2,9.33843172]
[1673261938415,3.59345632,1323.4,1323.2,9.40443172]
[1673261939786,3.59345632,1323.4,1323.2,16.96186172]
[1673261939999,0.19572097,1323.4,1323.2,16.96186172]
[1673261940448,3.59345632,1323.4,1323.2,16.96186172]
[1673261940840,3.59345632,1323.4,1323.2,24.51929172]
[1673261941038,5.00799195,1323.4,1323.2,24.51929172]
[1673261941242,5.07399195,1323.4,1323.2,24.51929172]
[1673261943396,1.6762566,1323.4,1323.2,24.51929172]
[1673261943612,1.6762566,1323.4,1323.2,16.96186172]
[1673261943613,3.59345632,1323.4,1323.2,16.96186172]
[1673261944301,3.59345632,1323.4,1323.2,24.51929172]
[1673261944510,3.59345632,1323.4,1323.2,16.96186172]
[1673261944724,3.59345632,1323.4,1323.2,24.51929172]
[1673261944957,3.59345632,1323.4,1323.2,16.96186172]
[1673261945171,6.15953606,1323.4,1323.2,16.96186172]
[1673261945364,0.066,1323.4,1323.3,13.1552119]
[1673261945570,35.71292112,1323.8,1323.4,0.066]
[1673261945779,31.8192,1323.8,1323.6,4.0]
[1673261945995,31.8192,1323.8,1323.5,31.04672536]
[1673261946216,31.8192,1323.8,1323.5,34.9329779]
[1673261946471,31.8192,1323.8,1323.5,31.3773779]
[1673261947327,31.8192,1323.8,1323.5,27.3773779]
[1673261948170,31.8192,1323.8,1323.5,29.0933779]
[1673261948384,31.8192,1323.8,1323.6,4.75832536]
[1673261948598,9.9178,1323.8,1323.7,22.66374]
[1673261948775,0.066,1323.8,1323.7,22.72974]
[1673261948984,25.91192112,1324.0,1323.7,22.72974]
[1673261951333,3.39402508,1323.9,1323.7,22.72974]
[1673261953109,25.34622508,1324.0,1323.7,22.72974]
[1673261953292,25.34622508,1324.0,1323.7,26.56497132]
[1673261955496,3.46002508,1324.0,1323.7,38.00118322]
[1673261955864,0.13109505,1324.1,1323.9,35.93276]
[1673261956028,0.13109505,1324.1,1323.9,40.44370206]
[1673261956029,0.06509505,1324.1,1323.9,40.44370206]
[1673261956240,0.06509505,1324.1,1323.9,19.61782206]
[1673261956449,0.06509505,1324.1,1323.9,4.51094206]
[1673261956713,0.06234905,1324.1,1323.8,19.89223]
[1673261957014,5.15937413,1324.1,1323.8,0.066]
[1673261957230,20.33010413,1324.1,1323.7,33.40946]
[1673261957418,20.33010413,1324.1,1323.8,7.554]
[1673261957600,12.77766413,1324.1,1323.8,15.17401]
[1673261957810,20.02332502,1324.1,1323.8,15.17401]
[1673261959418,20.02332502,1324.1,1323.8,7.62]
[1673261960230,20.02332502,1324.1,1323.8,15.17401]
[1673261960766,31.57561502,1324.1,1323.8,0.066]
[1673261960967,3.39402508,1324.0,1323.7,33.40954]
[1673261961183,4.0,1324.0,1323.7,27.748499]
[1673261961744,31.57561502,1324.1,1323.7,27.748499]
[1673261962470,27.57561502,1324.1,1323.7,27.748499]
[1673261963284,27.57561502,1324.1,1323.7,20.194169]
[1673261963285,35.12836502,1324.1,1323.7,20.194169]
[1673261963485,35.12836502,1324.1,1323.7,27.748749]
[1673261963856,27.57561502,1324.1,1323.7,27.748749]
[1673261967721,20.02332502,1324.1,1323.7,27.748749]
[1673261968141,5.79227413,1324.1,1323.7,27.748749]
[1673261968784,13.34458413,1324.1,1323.7,27.748749]
[1673261970256,5.79227413,1324.1,1323.7,27.748749]
[1673261970840,13.34459413,1324.1,1323.7,27.748749]
[1673261971298,32.24686477,1324.1,1323.7,7.62018]
[1673261971506,32.24686477,1324.1,1323.7,22.72934]
[1673261973678,7.39402508,1324.0,1323.7,22.72934]
[1673261973888,3.46002508,1324.0,1323.7,22.72934]
[1673261974128,10.94694508,1324.0,1323.7,22.72934]
[1673261974352,11.01294508,1324.0,1323.7,22.72934]
[1673261975410,3.46002508,1324.0,1323.7,22.72934]
[1673261975716,3.39402508,1324.0,1323.7,22.72934]
[1673261976750,10.94696508,1324.0,1323.7,22.72934]
[1673261976960,11.01296508,1324.0,1323.7,22.72934]
[1673261977206,3.46002508,1324.0,1323.7,22.72934]
[1673261977411,3.39402508,1324.0,1323.7,22.72934]
[1673261977650,10.94701508,1324.0,1323.7,22.72934]
[1673261977846,11.01301508,1324.0,1323.7,22.72934]
[1673261978058,11.01301508,1324.0,1323.7,22.72629605]
[1673261978313,18.56600508,1324.0,1323.7,7.61713605]
[1673261978590,26.11899508,1324.0,1323.7,0.066]
[1673261978766,18.56600508,1324.0,1323.7,7.55451]
[1673261978955,22.58718694,1324.0,1323.7,7.62051]
[1673261980121,15.03419694,1324.0,1323.7,15.17509]
[1673261980332,18.56588508,1324.0,1323.7,7.62051]
[1673261981273,11.01289508,1324.0,1323.7,15.17509]
[1673261981638,3.39402508,1323.9,1323.7,15.17509]
[1673261982156,3.39402508,1323.9,1323.7,22.72967]
[1673261985706,3.39402508,1323.8,1323.7,22.72967]
[1673261986850,3.39402508,1323.8,1323.7,7.62051]
[1673261987109,3.39402508,1323.8,1323.7,0.066]
[1673261987333,3.39402508,1323.8,1323.7,7.55458]
[1673261987489,3.39402508,1323.8,1323.7,7.62058]
[1673261987914,3.39402508,1323.8,1323.7,15.17516]
[1673261988137,3.39402508,1323.8,1323.7,7.62058]
[1673261988346,3.39402508,1323.8,1323.7,15.17516]
[1673261989008,3.39402508,1323.8,1323.7,22.72974]
[1673261989325,3.39402508,1323.8,1323.7,15.17516]
[1673261989538,3.39402508,1323.8,1323.7,7.62058]
[1673261990589,3.39402508,1323.8,1323.7,15.17516]
[1673261990749,3.39402508,1323.8,1323.7,7.62058]
[1673261990960,3.39402508,1323.8,1323.7,15.17516]
[1673261991580,3.39402508,1323.8,1323.7,18.374016]
[1673261991741,3.39402508,1323.8,1323.7,25.928596]
[1673261992648,3.39402508,1323.8,1323.7,18.374016]
[1673261993289,3.39402508,1323.8,1323.7,15.17516]
[1673261993629,3.39402508,1323.8,1323.7,7.62058]
[1673261994003,3.39402508,1323.8,1323.7,15.17516]
[1673261994525,3.39402508,1323.8,1323.7,7.62058]
[1673261995334,3.39402508,1323.8,1323.7,15.17516]
[1673261996108,3.39402508,1323.8,1323.7,22.72974]
[1673261996316,3.39402508,1323.8,1323.7,18.203623]
[1673261996997,3.39402508,1323.8,1323.7,0.066]
[1673261997207,3.39402508,1323.8,1323.7,7.55458]
[1673261997367,3.39402508,1323.8,1323.7,7.62058]
[1673261999400,3.39402508,1323.8,1323.7,15.17516]
[1673261999905,3.39402508,1323.8,1323.7,7.62058]
[1673262000106,3.31932508,1323.8,1323.7,15.17516]
[1673262000308,2.01204414,1323.8,1323.7,15.17516]
[1673262000529,2.01204414,1323.8,1323.7,25.002719]
[1673262000728,2.01204414,1323.8,1323.7,17.448139]
[1673262000974,2.01204414,1323.8,1323.7,25.002719]
[1673262001180,2.00205836,1323.8,1323.7,17.448139]
[1673262001628,2.00205836,1323.8,1323.7,25.002719]
[1673262001832,2.00205836,1323.8,1323.7,17.448139]
[1673262002255,2.00205836,1323.8,1323.7,9.893559]
[1673262002411,2.00205836,1323.8,1323.7,0.066]
[1673262002623,2.00205836,1323.8,1323.7,7.55458]
[1673262002832,2.00205836,1323.8,1323.7,15.17516]
[1673262005461,2.00205836,1323.8,1323.7,22.72974]
[1673262006980,2.00205836,1323.8,1323.7,7.62058]
[1673262007358,2.00205836,1323.8,1323.7,15.17516]
[1673262008454,2.00205836,1323.8,1323.7,0.066]
[1673262008612,2.00205836,1323.8,1323.6,15.17533]
[1673262008822,2.00205836,1323.8,1323.7,7.55458]
[1673262009032,2.00205836,1323.8,1323.7,7.62058]
[1673262009493,2.00205836,1323.8,1323.7,15.17516]
[1673262013028,2.00205836,1323.8,1323.7,22.72974]
[1673262013289,2.00405836,1323.8,1323.7,22.72774]
[1673262013603,2.00205836,1323.8,1323.7,25.9397303]
[1673262015336,2.00205836,1323.8,1323.7,18.3851503]
[1673262015812,2.00205836,1323.8,1323.7,25.9397303]
[1673262016333,2.00205836,1323.9,1323.7,25.9397303]
[1673262016545,2.00205836,1323.8,1323.7,25.9397303]
[1673262016855,2.00205836,1323.9,1323.7,22.72974]
[1673262018280,2.00205836,1323.9,1323.7,0.066]
[1673262018281,5.12039688,1323.8,1323.7,0.066]
[1673262018644,5.18630949,1323.8,1323.6,7.62063]
[1673262018802,5.18630949,1323.8,1323.6,15.17578]
[1673262019012,5.18630949,1323.8,1323.6,7.62063]
[1673262020530,5.18630949,1323.8,1323.6,15.17578]
[1673262022643,0.1686211,1323.7,1323.6,15.17578]
[1673262023035,0.1686211,1323.7,1323.6,7.62063]
[1673262023683,0.1686211,1323.7,1323.6,15.17578]
[1673262024818,0.1686211,1323.7,1323.6,15.17370405]
[1673262026180,0.1686211,1323.7,1323.6,22.72885405]
[1673262026389,0.1686211,1323.7,1323.6,15.17370405]
[1673262028323,3.56993059,1323.7,1323.6,15.17370405]
[1673262028532,6.21139576,1323.7,1323.6,0.066]
[1673262028708,6.27739576,1323.7,1323.5,7.55553]
[1673262028913,6.27739576,1323.7,1323.5,7.62153]
[1673262031064,14.39897576,1323.7,1323.5,0.066]
[1673262031371,14.39897576,1323.7,1323.4,22.73415]
[1673262034416,4.20293059,1323.7,1323.4,26.73415]
[1673262034583,0.7356211,1323.7,1323.4,26.73415]
[1673262036103,0.1686211,1323.7,1323.4,26.73415]
[1673262036315,0.1686211,1323.7,1323.4,22.73415]
[1673262036696,0.1686211,1323.7,1323.4,26.333911]
[1673262036956,0.1686211,1323.7,1323.4,29.333911]
[1673262037124,0.1686211,1323.7,1323.4,26.333911]
[1673262039782,3.56993059,1323.7,1323.4,26.283911]
[1673262039944,3.56993059,1323.7,1323.4,22.68415]
[1673262041014,0.1686211,1323.7,1323.4,22.68415]
[1673262041221,0.1686211,1323.7,1323.6,22.66545]
[1673262041466,0.1686211,1323.7,1323.6,22.73145]
[1673262041836,0.1686211,1323.7,1323.6,26.73145]
[1673262042046,0.1686211,1323.7,1323.6,30.460155]
[1673262042297,0.1686211,1323.7,1323.6,33.460155]
[1673262044782,0.1686211,1323.7,1323.6,29.460155]
[1673262045627,0.1686211,1323.7,1323.6,33.460155]
[1673262047103,0.1686211,1323.7,1323.6,29.460155]
[1673262049553,0.1686211,1323.7,1323.6,33.460155]
[1673262052346,0.1686211,1323.7,1323.6,29.460155]
[1673262055606,0.1686211,1323.7,1323.6,33.460155]
[1673262055815,1e-08,1323.7,1323.6,35.179155]
[1673262056043,1e-08,1323.7,1323.6,31.179155]
[1673262056555,1e-08,1323.7,1323.6,35.179155]
[1673262058126,1e-08,1323.7,1323.6,41.08222256]
[1673262058390,0.066,1324.0,1323.7,0.00199999]
[1673262058545,0.06234905,1324.1,1323.8,28.17769064]
[1673262058758,0.06234905,1324.1,1323.8,35.95196646]
[1673262058967,0.06234905,1324.1,1323.8,31.95196646]
[1673262061114,0.06234905,1324.1,1323.8,35.95196646]
[1673262061278,0.06234905,1324.1,1323.8,41.85503402]
[1673262061488,0.06234905,1324.1,1323.8,35.95196646]
[1673262062178,0.06234905,1324.1,1323.8,31.95196646]
[1673262062491,0.06234905,1324.1,1323.8,35.95196646]
[1673262062981,0.06234905,1324.1,1323.8,31.95196646]
[1673262064357,0.06234905,1324.1,1323.8,35.95196646]
[1673262064980,0.06234905,1324.1,1323.8,31.95196646]
[1673262065818,0.06234905,1324.1,1323.8,35.95196646]
[1673262066326,0.06234905,1324.1,1323.8,31.95196646]
[1673262070163,0.06234905,1324.1,1323.8,35.95196646]
[1673262070362,0.06234905,1324.1,1323.8,31.95196646]
[1673262070574,0.16258696,1324.0,1323.8,31.95196646]
[1673262071031,0.16258696,1324.0,1323.9,3.79766064]
[1673262071164,0.16258696,1324.0,1323.9,34.24348404]
[1673262071523,0.16258696,1324.0,1323.9,30.30948404]
[1673262072995,0.16258696,1324.0,1323.9,39.6505516]
[1673262073209,0.16258696,1324.0,1323.9,42.6505516]
[1673262073368,0.16258696,1324.0,1323.9,40.9315516]